[Event "Presidents Day IM-Norm 2024"]
[Site "Santa Clara"]
[Date "2024.02.17"]
[Round "3.4"]
[White "Guo, Ethan"]
[Black "Cardoso Cardoso, Jose Gabriel"]
[Result "0-1"]
[ECO "B90"]
[WhiteElo "2099"]
[BlackElo "2477"]
[Annotator "TA"]
[PlyCount "76"]
[EventDate "2024.02.13"]
[EventType "tourn"]
[EventCountry "USA"]
[SourceTitle "playchess.com"]
[Source "ChessBase"]
[SourceQuality "1"]
[TimeControl "5400+30"]

{[%evp 12,76,12,7,27,-1,0,0,23,13,43,39,60,65,70,69,90,98,100,96,107,102,93,55,68,53,39,21,28,17,29,10,6,6,8,14,7,4,7,0,0,-18,0,-31,0,0,0,0,-10,-21,0,-58,0,-70,-20,-12,0,-48,-36,-109,-110,-110,-110,-630,-13,-622,-615]} 1. e4 {[%emt 1:31:00]} c5 {[%emt 0:00:25]} 2. Nf3 {[%emt 0:00:30]} d6 {[%emt 1:31:05]} 3. d4 {[%emt 0:00:00]} cxd4 {[%emt 0:00:00]} 4. Nxd4 {[%emt 0:00:00]} Nf6 {[%emt 0:01:00]} 5. Nc3 {[%emt 0:01:30]} a6 {[%emt 0:00:00]} 6. h3 {[%emt 0:00:00]} e5 {[%emt 0:00:00]} 7. Nde2 {[%emt 0:00:00][%cal Bd4e2,Be2g1,Bg1f3,Bf3g5][%mdl 32]} h5 {[%emt 0:00:00]} 8. Ng1 {[%emt 0:01:30]} Be7 {[%emt 0:02:00]} 9. Nf3 {[%emt 0:00:30]} Qc7 {[%emt 0:00:30] The position is equal.} 10. Ng5 {[%emt 0:00:30]} Nbd7 {[%emt 0:00:00]} 11. a4 {[%emt 0:00:00]} Nc5 {[%emt 0:00:00]} 12. Bc4 {[%emt 0:00:00]} Ne6 {[%emt 0:00:00]} 13. Bb3 {[%emt 0:00:00]} h4 {[%emt 0:00:00]} 14. O-O {[%emt 0:00:00]} Bd7 {[%emt 0:00:00]} 15. Be3 {[%emt 0:00:00]} O-O {[%emt 0:00:00]} 16. Nxe6 {[%emt 0:00:00]} Bxe6 {[%emt 0:00:00]} 17. Bg5 {[%emt 0:00:00]} Nh7 {[%emt 0:00:00]} 18. Bxe7 {[%emt 0:00:00]} Qxe7 {[%emt 0:00:00]} 19. Nd5 {[%emt 0:00:00]} Bxd5 {[%emt 0:00:00]} 20. Bxd5 {[%emt 0:00:00]} Nf6 {[%emt 0:00:00][%cal Bh7f6,Bf6h5,Bh5f4][%mdl 32]} 21. c3 {[%emt 0:00:00]} Rac8 {[%emt 0:00:00]} 22. Re1 {[%emt 0:06:00]} g6 {[%emt 0:00:00]} 23. Bb3 {[%emt 0:00:00]} Kg7 {[%emt 0:00:00]} 24. Qf3 {[%emt 0:00:00]} Nh5 {[%emt 0:00:00]} 25. Rad1 {[%emt 0:00:00]} Nf4 {[%emt 0:00:00]} 26. Qg4 {[%emt 0:00:00]} Rh8 {[%emt 0:00:00]} 27. Re3 {[%emt 0:00:00]} Rc7 {[%emt 0:00:00]} 28. Rf3 {[%emt 0:00:00]} Rh5 {[%emt 0:00:00]} 29. Rxf4 {[%emt 0:00:00]} exf4 {[%emt 0:00:00]} 30. Qxf4 {[%emt 0:00:00]} Re5 {[%emt 0:00:00]} 31. Bd5 {[%emt 0:00:00]} (31. f3 $11) 31... f5 {[%emt 0:00:00]} (31... Qg5 $1 $15 32. Qg4 Qe7 (32... Qxg4 33. hxg4 g5 34. Kf1 $11)) 32. exf5 {[%emt 0:00:00]} (32. f3 $1 $11) 32... Rxf5 {[%emt 0:00:00]} ({Black should try} 32... Re1+ $15 33. Rxe1 Qxe1+ 34. Kh2 Qe5 35. Qxe5+ dxe5 36. fxg6 Kxg6) 33. Qd4+ $11 {[%emt 0:00:00]} Kh7 {[%emt 0:00:00]} 34. Qg4 {[%emt 0:00:00]} (34. f3 $11) 34... Qf6 $36 {[%emt 0:00:00][%mdl 2048] Black has the initiative.} 35. Rd4 {[%emt 0:00:00]} (35. Be4 $15 Re5 36. Kh2) 35... Kg7 $17 {[%emt 0:00:00]} 36. Bf3 {[%emt 0:00:00]} Re7 {[%emt 0:00:00] White must now prevent ...Re1+.} 37. Qxh4 $2 {[%emt 0:00:00][%mdl 8192] [#]} (37. Kf1 $17) 37... Re1+ $1 $19 {[%emt 0:00:00]} 38. Kh2 {[%emt 0:00:00] [#]} Rxf3 $1 {[%emt 0:00:00] Weighted Error Value: White=0.36/Black=0.11 (very precise) .  Loses game:     	White=2     	---        Mistake:       	White=4     	Black=2      Inaccurate:     	White=3     	Black=2      OK:         	White=6     	Black=9      Best:        	---       	Black=2      Strong:       	---       	Black=1} ({Stronger than} 38... Qxh4 39. Rxh4 b5 40. Rd4 $11) 0-1

[Event "Presidents Day IM-Norm 2024"]
[Site "Santa Clara"]
[Date "2024.02.17"]
[Round "3.5"]
[White "Liu, Patrick"]
[Black "Stevens, Adam B"]
[Result "1/2-1/2"]
[ECO "D23"]
[WhiteElo "2130"]
[BlackElo "1878"]
[Annotator "RC"]
[PlyCount "83"]
[EventDate "2024.02.13"]
[EventType "tourn"]
[EventCountry "USA"]
[SourceTitle "playchess.com"]
[Source "ChessBase"]
[SourceQuality "1"]
[TimeControl "5400+30"]

1. d4 {[%emt 0:00:01]} d5 {[%emt 0:00:12]} 2. Nf3 {[%emt 0:00:03]} Nf6 {[%emt 0:00:14]} 3. c4 {[%emt 0:00:03]} c6 {[%emt 0:00:04]} 4. Qc2 {[%emt 0:00:01]} dxc4 {[%emt 0:00:14]} 5. Qxc4 {[%emt 0:00:03]} Bf5 {[%emt 0:00:15]} 6. g3 {[%emt 0:00:02]} e6 {[%emt 0:00:33]} 7. Bg2 {[%emt 0:00:04]} Nbd7 {[%emt 0:00:26]} 8. O-O {[%emt 0:00:04]} Be7 {[%emt 0:00:09]} 9. e3 {[%emt 0:00:15]} O-O {[%emt 0:01:54]} 10. Rd1 {[%emt 0:00:05]} h6 {[%emt 0:10:33]} 11. Qe2 {[%emt 0:00:15]} Ne4 {[%emt 0:08:36]} 12. Ne1 {[%emt 0:02:09]} Qb6 {[%emt 0:03:42]} 13. Nc3 {[%emt 0:01:40]} Ndf6 {[%emt 0:02:17]} 14. f3 {[%emt 0:02:06]} Nxc3 {[%emt 0:01:45]} 15. bxc3 {[%emt 0:00:02]} Bh7 {[%emt 0:02:59]} 16. e4 {[%emt 0:01:16]} c5 {[%emt 0:07:30]} 17. Be3 {[%emt 0:01:14]} Rac8 {[%emt 0:01:29]} 18. Rab1 {[%emt 0:02:01]} Qc6 {[%emt 0:02:11]} 19. Nd3 {[%emt 0:03:26]} cxd4 {[%emt 0:01:53]} 20. cxd4 {[%emt 0:00:05]} b6 {[%emt 0:00:33]} 21. Rdc1 {[%emt 0:05:16]} Qb7 {[%emt 0:03:08]} 22. Qb2 {[%emt 0:00:38]} Qa6 {[%emt 0:04:49]} 23. Qb3 {[%emt 0:01:09]} Ba3 {[%emt 0:03:02]} 24. Rd1 {[%emt 0:00:10]} Be7 {[%emt 0:02:10]} 25. Bf1 {[%emt 0:00:10]} Qa3 {[%emt 0:01:29]} 26. Rdc1 {[%emt 0:01:10]} Nd7 {[%emt 0:00:53]} 27. Bd2 {[%emt 0:06:16]} Qd6 {[%emt 0:03:48]} 28. Bb4 {[%emt 0:00:08]} Qxd4+ {[%emt 0:00:02]} 29. Kh1 {[%emt 0:01:35]} Bxb4 {[%emt 0:01:09]} 30. Nxb4 {[%emt 0:02:05]} Rxc1 {[%emt 0:01:35]} 31. Rxc1 {[%emt 0:00:01]} Nc5 {[%emt 0:00:22]} 32. Qa3 {[%emt 0:02:57]} Qd7 {[%emt 0:05:33]} 33. Nd3 {[%emt 0:02:10]} Nxd3 {[%emt 0:02:33]} 34. Bxd3 {[%emt 0:00:29]} Bg6 {[%emt 0:00:37]} 35. Kg2 {[%emt 0:01:24]} Rd8 {[%emt 0:00:18]} 36. Rc3 {[%emt 0:00:11]} Qd4 {[%emt 0:00:34]} 37. Qb3 {[%emt 0:00:38]} Qe3 {[%emt 0:00:59]} 38. Qc2 {[%emt 0:01:20]} Qd4 {[%emt 0:01:15]} 39. Ra3 {[%emt 0:02:45]} Qd6 {[%emt 0:02:19]} 40. Rc3 {[%emt 0:01:05]} Qd4 {[%emt 0:01:18]} 41. Ra3 {[%emt 0:00:13]} Qd6 {[%emt 0:00:52]} 42. Rc3 {[%emt 0:00:04]} 1/2-1/2

[Event "Presidents Day IM-Norm 2024"]
[Site "Santa Clara"]
[Date "2024.02.18"]
[Round "4.1"]
[White "Yan, Nathan"]
[Black "Stevens, Adam B"]
[Result "1-0"]
[ECO "B90"]
[WhiteElo "2311"]
[BlackElo "1878"]
[Annotator "TA"]
[PlyCount "103"]
[EventDate "2024.02.13"]
[EventType "tourn"]
[EventCountry "USA"]
[SourceTitle "playchess.com"]
[Source "ChessBase"]
[SourceQuality "1"]
[TimeControl "5400+30"]

{[%evp 19,103,0,12,17,23,8,19,13,4,20,20,0,0,0,0,16,7,0,0,0,0,0,0,0,0,0,0,0,0,0,0,0,0,-25,0,0,0,0,46,28,25,0,0,8,134,70,143,143,122,-12,0,0,81,81,86,63,139,130,119,135,139,138,115,50,120,120,112,108,91,8,6,0,0,-112,0,-19,8,8,391,381,397,348,912,876,1189,1188]} 1. e4 {[%emt 0:11:29]} c5 {[%emt 0:02:55]} 2. Nf3 {[%emt 0:00:15]} d6 {[%emt 0:00:38]} 3. d4 {[%emt 0:00:03]} cxd4 {[%emt 0:00:34]} 4. Nxd4 {[%emt 1:20:43]} Nf6 {[%emt 0:00:09]} 5. Nc3 {[%emt 0:00:00]} a6 {[%emt 0:00:07]} 6. f3 {[%emt 0:00:00]} e5 {[%emt 0:02:17]} 7. Nb3 {[%emt 0:00:00]} Be6 {[%emt 0:00:11]} 8. Be3 {[%emt 0:00:00]} h5 {[%emt 0:01:12]} 9. Qd2 {[%emt 0:00:00]} Nbd7 {[%emt 0:00:14]} 10. O-O-O {[%emt 0:00:00]} Rc8 {[%emt 0:00:14]} 11. Bd3 {[%emt 0:00:00]} Be7 {[%emt 0:04:05]} 12. Kb1 {[%emt 0:00:00]} b5 {[%emt 0:00:36]} 13. h3 {[%emt 0:00:00] Die Stellung ist ausgeglichen.} h4 {[%emt 0:00:14]} 14. f4 {[%emt 0:00:00]} Qc7 {[%emt 0:00:44]} 15. Rhe1 {[%emt 0:00:00]} O-O {[%emt 0:00:28]} 16. f5 {[%emt 0:00:00]} Bc4 {[%emt 0:00:09]} 17. g4 {[%emt 0:00:00]} hxg3 {[%emt 0:00:53] Droht ...a5 und aus.} 18. Rg1 {[%emt 0:00:00]} b4 {[%emt 0:00:10]} 19. Nd5 {[%emt 0:00:00]} Nxd5 {[%emt 0:00:04]} (19... Bxd5 20. exd5 Nh5 21. Bxa6) 20. exd5 {[%emt 0:00:00]} Bh4 {[%emt 0:00:02]} 21. Bg5 {[%emt 0:00:00]} Bxd3 {[%emt 0:00:03]} 22. cxd3 {[%emt 0:00:00]} Bxg5 {[%emt 0:00:09]} 23. Qxg5 {[%emt 0:00:00]} f6 $1 {[%emt 0:00:02]} 24. Qxg3 {[%emt 0:00:00][%csl Gg1][%cal Rg3g7]} Nb6 {[%emt 0:00:14]} (24... Qc2+ $2 25. Ka1 $18) 25. h4 {[%emt 0:00:00][%cal Bh3h4,Bh4h5,Bh5h6][%mdl 32]} a5 {[%emt 0:00:44] ...a4 wäre nun fies.} 26. Rc1 {[%emt 0:00:00] Tanz auf der Rasierklinge.} Qf7 {[%emt 0:18:02]} 27. h5 {[%emt 0:00:00]} (27. Rc6 Nxd5 28. Rxd6 Nf4 $17) 27... Rxc1+ {[%emt 0:00:16]} (27... Qxd5 28. Qxg7#) (27... Nxd5 $6 28. h6 Rxc1+ 29. Nxc1 $16) 28. Nxc1 {[%emt 0:00:00] Zielt auf h6 ab.} Qd7 {[%emt 0:06:17]} (28... Nxd5 $2 29. h6 Qd7 30. Qg2 $16 (30. Qxg7+ Qxg7 31. Rxg7+ Kh8 $19)) (28... Kh7 $11) 29. h6 $14 {[%emt 0:00:00] Schwarz muss nun Qf2 beachten.} Rf7 $1 {[%emt 0:00:12]} 30. Qf3 {[%emt 0:00:00]} Qb7 $1 {[%emt 0:19:51]} 31. Qh5 {[%emt 0:00:00] jetzt hxg7 und aus.} Qd7 {[%emt 0:02:17]} (31... Qe7 $1 $11 {bleibt in der Remisbreite.}) 32. Rh1 {[%emt 0:00:00]} (32. Rxg7+ $16 Rxg7 33. hxg7 Qxg7 34. Qe8+ Kh7 35. Qc6) 32... Qe7 {[%emt 0:12:45]} (32... gxh6 $14 33. Qxh6 Rh7 34. Qg6+ Rg7 35. Qxf6 Nxd5) 33. hxg7 $16 {[%emt 0:00:00]} Rxg7 {[%emt 0:00:14][%cal Og8f8]} 34. Qf3 {[%emt 0:00:00]} (34. Qh8+ $16 Kf7 35. Qb8) 34... Qb7 {[%emt 0:02:20]} 35. Rh6 $40 {[%emt 0:00:00][%cal Of3h5][%mdl 128] Weiss startet einen Angriff.} (35. Qh5 $5 Qd7 $8 36. Nb3 $16) 35... Qf7 {[%emt 0:02:21]} (35... Nxd5 36. Qh5 Kf8 37. Rh8+ Rg8 38. Rh7) (35... Rg5 $1 $11) 36. Qh1 $1 {[%emt 0:00:00][%csl Gh1][%cal Rh6h8]} (36. Qh3 Rh7 $15) 36... Kf8 {[%emt 0:03:03]} (36... Nxd5 37. Rh8#) 37. Rh8+ $1 {[%emt 0:16:30]} Rg8 {[%emt 0:01:02]} (37... Ke7 $14) 38. Rh7 {[%emt 0:00:00]} Rg7 {[%emt 0:04:55]} 39. Qh6 {[%emt 0:00:00] Und jetzt Ne2 wäre schön.} (39. Rh8+ Ke7 $15) 39... Nxd5 {[%emt 0:01:38]} 40. Rh8+ $1 {[%emt 0:00:00]} Ke7 {[%emt 0:00:10]} 41. Ra8 {[%emt 0:00:00]} (41. Qh1 $1 $16) 41... Nb6 {[%emt 0:03:02]} (41... Nc7 $1 $14 42. Ra7 Kd7) 42. Ra7+ {[%emt 0:00:00][%mdl 1024] Weiss hat starke Kompensation.} (42. Rxa5 Qg8 $14) 42... Nd7 {[%emt 0:00:06] [#]} 43. Qh1 $1 {[%emt 0:00:00] Verhindert Rg1. Weiß steht aktiver.} Rg8 {[%emt 0:04:25] Pariert Qb7.} 44. Qc6 {[%emt 0:00:00]} (44. Qb7 $6 Rd8 $11) (44. Rc7 $16 {Und Nb3 würde nun gewinnen.} a4 45. Qc6) 44... Rd8 $1 $11 {[%emt 0:00:32]} 45. Nb3 {[%emt 0:00:00]} Qh5 {[%emt 0:00:55] Gegen Qh1 gerichtet.} 46. Ra6 {[%emt 0:00:00] [#]} (46. Qd5 $11 Qxf5 47. Nxa5 (47. Nd2 $2 Qf2 $19)) 46... Nf8 {[%emt 0:01:46]} (46... Qxf5 $6 47. Qxd6+ Ke8 (47... Kf7 48. Rxa5 Rh8 49. Nc1 $14) 48. Qd5 $11 (48. Rxa5 $2 Nb8 $17) (48. Nxa5 $2 Qf1+ 49. Kc2 Nc5 $19)) (46... Qd1+ $6 47. Nc1 Nc5 48. Rxa5 Nxd3 49. Ra7+ Kf8 50. Ra8 Rxa8 51. Qxa8+ Kg7 52. Qg2+ Kf8 53. Qa8+ Kg7 54. Qg2+ Kf8 55. Qa8+ $11) ({Vorzuziehen ist} 46... Nc5 $1 $17 {[%cal Rc5a6]} 47. Rxa5 Nxd3 (47... Qd1+ 48. Nc1 $11)) 47. Qc4 {[%emt 0:00:00]} Qxf5 {[%emt 0:01:54]} 48. Nxa5 {[%emt 0:05:30]} Qf1+ $2 {[%emt 0:01:39][%mdl 8192] Das kostet Schwarz die Partie.} (48... Ne6 $11 {und Schwarz steht sicher.} 49. Nc6+ (49. Qxb4 $2 {zu gefräßig.} Qxd3+ 50. Kc1 Qxa6 $19) 49... Ke8) 49. Kc2 $18 {[%emt 0:00:00] Nc6+ ist eine echte Drohung.} Qe2+ {[%emt 0:00:12]} 50. Kb3 {[%emt 0:00:00]} Qd1+ $2 {[%emt 0:00:16]} (50... Nd7 51. Ra7 (51. Qxb4 $2 {verliert.} Qxd3+ 52. Qc3 Nc5+ 53. Ka3 Qxa6 $19) (51. Nc6+ Kf8 $18) 51... Qd1+ 52. Kxb4 Rb8+ 53. Ka3 Rb6) 51. Kxb4 {[%emt 0:00:00]} Rb8+ {[%emt 0:00:51]} 52. Ka3 {[%emt 0:00:00] Gewichteter Fehlerwert: Weiß=0.18 (sehr präzise) /Schwarz=0.33.  Verlustzug:     	---       	Schwarz=1     Fehler:       	Weiß=5     	Schwarz=8     Ungenau:       	---       	Schwarz=2     OK:         	Weiß=10    	Schwarz=12    Bester:       	Weiß=8     	Schwarz=8     Stark:        	Weiß=4     	Schwarz=4} 1-0

[Event "Presidents Day IM-Norm 2024"]
[Site "Santa Clara"]
[Date "2024.02.17"]
[Round "4.2"]
[White "Cardoso Cardoso, Jose Gabriel"]
[Black "Liu, Patrick"]
[Result "1-0"]
[ECO "B48"]
[WhiteElo "2477"]
[BlackElo "2130"]
[Annotator "TA"]
[PlyCount "119"]
[EventDate "2024.02.13"]
[EventType "tourn"]
[EventCountry "USA"]
[SourceTitle "playchess.com"]
[Source "ChessBase"]
[SourceQuality "1"]
[TimeControl "5400+30"]

{[%evp 11,119,33,35,29,27,22,31,10,54,22,27,0,0,0,74,75,68,74,75,66,75,72,70,84,67,64,77,87,104,96,124,140,208,214,216,110,105,114,110,107,104,110,106,104,105,93,116,95,108,86,115,127,206,212,212,214,203,193,254,254,254,254,254,247,247,247,2024,2061,2084,1912,7003,5655,6728,6388,29963,29963,29966,29958,29959,29962,29967,6199,29970,29970,29982,29981,29983,29984,29984,29985,29985,29986,29988,29974,29989,29990,29990,29991,29994,29994,29995,29994,29994,29994,29994,29994,29996,29997,29997,29998]} 1. e4 {[%emt 0:00:59]} c5 {[%emt 0:00:02]} 2. Nf3 {[%emt 0:00:21]} e6 {[%emt 0:00:03]} 3. d4 {[%emt 0:00:09]} cxd4 {[%emt 0:00:03]} 4. Nxd4 {[%emt 0:00:00]} Nc6 5. Nc3 {[%emt 1:31:31]} Qc7 {[%emt 0:00:06]} 6. Be3 {[%emt 0:00:00]} a6 {[%emt 0:00:04]} 7. Qf3 {[%emt 0:00:00]} Nf6 {[%emt 0:00:10][%cal Of8a3]} 8. O-O-O {[%emt 0:01:30]} Ne5 9. Qg3 {[%emt 0:00:00] White is slightly better.} b5 {[%emt 0:00:14]} 10. a3 {[%emt 0:00:00]} Bb7 {[%emt 0:05:49] [#]} 11. Bxb5 $1 {[%emt 0:00:00] aiming for Ba4.} Rc8 $1 {[%emt 0:09:55]} ({Reject} 11... axb5 $6 12. Ndxb5 Qb8 13. Bb6 $16) 12. Ba4 {[%emt 0:00:00]} Neg4 {[%emt 1:20:04] [#]} (12... Nxe4 $11 {keeps the balance.} 13. Nxe4 Bxe4) 13. e5 $1 $36 {[%emt 0:02:30][%mdl 2048] White is in control.} Nxe5 {[%emt 0:00:00][%cal Of8a3]} 14. Bf4 {[%emt 0:00:00]} Nh5 {[%emt 0:00:00]} 15. Nxe6 {[%emt 0:00:00]} fxe6 {[%emt 0:00:00]} 16. Bxe5 {[%emt 0:00:00]} Nxg3 {[%emt 0:00:00]} 17. Bxc7 {[%emt 0:00:00]} Rxc7 {[%emt 0:00:00]} 18. hxg3 {[%emt 0:00:00]} Bc5 {[%emt 0:00:00]} 19. f3 {[%emt 0:00:00]} Ke7 {[%emt 0:00:00]} 20. Ne2 {[%emt 0:00:00]} g5 {[%emt 0:00:00]} 21. g4 {[%emt 0:00:00]} d5 {[%emt 0:00:00]} (21... h6 $16 22. Rh5 Kf6) 22. Rh6 $18 {[%emt 0:00:00]} Bc8 {[%emt 0:00:00]} 23. Nd4 {[%emt 0:00:00]} ({White should try} 23. Rdh1 $18) 23... Kf7 $16 {[%emt 0:00:00]} 24. c3 {[%emt 0:00:00]} Bf8 {[%emt 0:00:00]} 25. Rhh1 {[%emt 0:00:00] White has more active pieces.} Bg7 {[%emt 0:00:00]} 26. Kb1 {[%emt 0:00:00]} h6 {[%emt 0:00:00]} 27. Rd2 {[%emt 0:00:00]} Rd8 {[%emt 0:00:00]} 28. Bb3 {[%emt 0:00:00][%cal Ba4b3,Bb3a2,Ba2d5][%mdl 32]} Rb7 {[%emt 0:00:00] Strongly threatening ...Bxd4.} 29. Ba2 {[%emt 0:00:00]} Rd6 {[%emt 0:00:00]} 30. g3 {[%emt 0:00:00]} Kg6 {[%emt 0:00:00]} 31. Ka1 {[%emt 0:00:00]} e5 {[%emt 0:00:00] [#]} (31... Rc7 $16 32. Re2 e5) 32. Nf5 $1 $18 {[%emt 0:00:00][%mdl 512]} Bxf5 {[%emt 0:00:00]} 33. gxf5+ {[%emt 0:00:00]} Kxf5 {[%emt 0:00:00]} 34. Bxd5 {[%emt 0:00:00] Be4+ is the strong threat.} Rc7 {[%emt 0:00:00]} (34... Rbd7 {keeps fighting.} 35. c4 Rc7) 35. Be4+ {[%emt 0:00:00]} Ke6 {[%emt 0:00:00][%cal Bf5e6,Be6d6,Bd6e7,Be7d7,Bd7c7,Bc7b6,Bb6b5,Bb5c6,Bc6b7][%mdl 32]} 36. Rxd6+ {[%emt 0:00:00]} Kxd6 {[%emt 0:12:00][%mdl 4096] Endgame. KRB-KRB} 37. Rd1+ Ke7 {[%emt 0:00:00]} 38. g4 {[%emt 0:00:00]} Rd7 $2 {[%emt 0:00:00]} (38... a5 39. Rd5 a4) 39. Rxd7+ {[%emt 0:00:00]} Kxd7 {[%emt 0:00:00] KB-KB} 40. b4 {[%emt 0:00:00]} a5 {[%emt 0:00:00]} 41. Kb2 {[%emt 0:00:00]} Bf8 {[%emt 0:00:00]} 42. Kb3 {[%emt 0:00:00] And now c4 would win.} Kc7 {[%emt 0:00:00]} 43. c4 {[%emt 0:00:00][%cal Bc3c4,Bc4c5][%mdl 32]} axb4 {[%emt 0:00:00]} 44. axb4 {[%emt 0:00:00][%cal Ba3b4,Bb4b5,Bb5b6][%mdl 32]} Kb6 {[%emt 0:00:00]} 45. c5+ {[%emt 0:00:00]} Kb5 {[%emt 0:00:00]} 46. Bd3+ {[%emt 0:00:00]} Kc6 {[%emt 0:00:00]} 47. Kc4 {[%emt 0:00:00] White mates.} Be7 {[%emt 0:00:00]} 48. b5+ {[%emt 0:00:00]} Kb7 {[%emt 0:00:00]} 49. Be4+ {[%emt 0:00:00]} Kc7 {[%emt 0:00:00]} 50. b6+ {[%emt 0:00:00]} Kc8 {[%emt 0:00:00]} 51. c6 {[%emt 0:00:00]} Bd8 {[%emt 0:00:00]} 52. Bf5+ {[%emt 0:00:00]} Kb8 {[%emt 0:00:00]} 53. Kb5 {[%emt 0:00:00]} e4 {[%emt 0:00:00]} 54. fxe4 {[%emt 0:00:00]} h5 {[%emt 0:00:00]} 55. gxh5 {[%emt 0:00:00]} g4 {[%emt 0:00:00]} 56. Bxg4 {[%emt 0:00:00]} Bc7 {[%emt 0:00:00]} 57. bxc7+ {[%emt 0:00:00]} Kxc7 {[%emt 0:00:00]} 58. e5 {[%emt 0:00:00]} Kb8 {[%emt 0:00:00]} 59. Kb6 {[%emt 0:00:00]} Ka8 {[%emt 0:00:00]} 60. Bd7 {[%emt 0:00:00] Weighted Error Value: White=0.05 (flawless) /Black=0.22 (precise) .  Mistake:       	White=1     	Black=5      Inaccurate:     	White=1     	Black=1      OK:         	White=20    	Black=10     Best:        	White=2     	Black=6      Strong:       	---       	Black=1} 1-0

[Event "Presidents Day IM-Norm 2024"]
[Site "Santa Clara"]
[Date "2024.02.17"]
[Round "4.3"]
[White "Yim, Sung Ho"]
[Black "Guo, Ethan"]
[Result "1-0"]
[ECO "E14"]
[WhiteElo "2243"]
[BlackElo "2099"]
[Annotator "TA"]
[PlyCount "87"]
[EventDate "2024.02.13"]
[EventType "tourn"]
[EventCountry "USA"]
[SourceTitle "playchess.com"]
[Source "ChessBase"]
[SourceQuality "1"]
[TimeControl "5400+30"]

{[%evp 14,87,36,20,18,33,23,18,33,16,17,27,31,21,21,0,33,19,47,50,76,54,84,34,50,34,90,43,84,36,30,26,95,98,89,94,90,87,106,69,121,124,118,122,126,95,101,104,103,98,102,102,198,195,168,124,206,201,706,706,668,655,593,132,5069,4834,718,651,215,0,619,553,29974,29975,29997,-1016]} 1. d4 {[%emt 0:00:49]} Nf6 {[%emt 0:00:05]} 2. c4 {[%emt 0:00:08]} e6 {[%emt 0:00:03]} 3. Nf3 {[%emt 0:00:12]} Bb4+ {[%emt 0:00:04]} 4. Nbd2 {[%emt 0:00:12]} b6 {[%emt 0:00:04]} 5. a3 {[%emt 0:00:17]} Bxd2+ {[%emt 0:00:05]} 6. Qxd2 {[%emt 0:00:12]} Bb7 {[%emt 0:00:05]} 7. e3 {[%emt 0:00:12]} O-O {[%emt 0:00:04]} 8. Be2 {[%emt 0:00:32]} d5 {[%emt 0:00:08]} 9. O-O {[%emt 0:01:21]} dxc4 {[%emt 0:00:05]} 10. Bxc4 {[%emt 0:00:17]} Nbd7 {[%emt 0:00:03] The position is equal.} 11. b4 {[%emt 0:01:12]} a5 {[%emt 0:00:04]} 12. b5 {[%emt 0:09:41]} c5 {[%emt 0:00:03]} 13. bxc6 {[%emt 0:00:47]} Bxc6 {[%emt 0:00:05]} 14. Bb2 {[%emt 0:01:20]} b5 {[%emt 0:03:23]} (14... Bxf3 $5 15. gxf3 Ne5 $11) 15. Bd3 {[%emt 0:03:41]} Qb6 {[%emt 0:01:03]} 16. Qe2 {[%emt 0:01:53]} Ne4 {[%emt 0:02:53]} 17. Rfc1 {[%emt 0:12:47] Qc2 would now be deadly.} f5 {[%emt 0:09:15] [#]} 18. d5 {[%emt 0:13:27]} Bxd5 $14 {[%emt 0:00:36]} 19. Bxb5 {[%emt 0:03:24]} Qb7 {[%emt 0:05:18]} (19... Ndc5 $14) 20. Rab1 {[%emt 0:08:09]} (20. Ne5 $16 Nec5 21. Nxd7 Nxd7 22. a4) 20... Rfc8 {[%emt 0:09:11]} 21. Bd4 {[%emt 0:19:55]} (21. Rxc8+ $16 Qxc8 (21... Rxc8 $2 22. Ba6 $18) 22. Rc1) 21... Rxc1+ {[%emt 0:04:53]} 22. Rxc1 {[%emt 0:00:01]} Rc8 {[%emt 0:01:04]} (22... Ndc5 $11) 23. Rxc8+ $16 {[%emt 0:00:55]} Qxc8 {[%emt 0:00:09]} 24. Qb2 {[%emt 0:02:33][%cal Ob5d7] Strongly threatening Bxd7!} Nd6 {[%emt 0:05:06]} 25. Be2 {[%emt 0:02:01] A strong pair of Bishops.} ({Stronger than} 25. Bxg7 Nxb5 26. Bh8 e5 27. Nxe5 Nxe5 (27... Kxh8 $2 28. Nf7+ Kg8 29. Nh6+ Kf8 30. Qh8+ Ke7 31. Nxf5+ Kf7 32. Qxc8 $18) 28. Bxe5 Qc6 $17) 25... g6 {[%emt 0:07:24]} 26. Bh8 {[%emt 0:04:53]} Ne8 {[%emt 0:02:20] Prevents Qg7+.} (26... Qf8 $1 $14) 27. Bc3 {[%emt 0:00:18]} Qc7 {[%emt 0:00:50]} 28. Qd2 {[%emt 0:01:16]} Qc5 {[%emt 0:02:06]} 29. a4 {[%emt 0:01:00]} Nd6 {[%emt 0:02:34] Hoping for ...Ne4.} 30. Bxa5 {[%emt 0:02:24] And now Bb4 would win.} Nc4 {[%emt 0:00:51]} 31. Bxc4 {[%emt 0:00:42]} Qxc4 {[%emt 0:00:11]} 32. Bb4 {[%emt 0:03:24]} Nc5 {[%emt 0:05:29]} (32... Qa2 $16 {keeps fighting.}) 33. Bxc5 $1 $18 {[%emt 0:02:13]} Qxc5 {[%emt 0:00:14][%mdl 4096] Endgame. KQB-KQN} 34. Qb2 {[%emt 0:01:40] Prevents Qa3.} Qc6 {[%emt 0:03:10]} (34... Bb3 $16 35. Nd4 (35. Qxb3 $2 {leads to mate.} Qc1+) 35... Bxa4 36. Nxe6 Qe7) 35. Ne5 {[%emt 0:01:54]} Qxa4 $2 {[%emt 0:01:41]} (35... Qc7 36. h4 Bb7) 36. Qb8+ {[%emt 0:00:01]} Kg7 {[%emt 0:00:18]} 37. Qc7+ {[%emt 0:00:27]} Kh6 {[%emt 0:06:14][%cal Ra4d1] [#]} 38. h3 $2 {[%emt 0:00:38]} (38. Nf7+ $1 $18 {is the precise move to win.} Kh5 39. Qc1) 38... Qe4 $2 {[%emt 0:02:04][%mdl 8192]} (38... g5 $16) 39. Nf7+ {[%emt 0:00:45]} Kh5 {[%emt 0:00:21]} 40. Qg3 {[%emt 0:01:02]} h6 {[%emt 0:00:34] [#] Prevents Qg5+.} 41. f4 {[%emt 0:01:45]} (41. Nh8 $1 $18 Qxg2+ (41... g5 $2 42. Kh2 $18) 42. Qxg2 Bxg2 43. Kxg2) 41... Qb1+ $2 {[%emt 0:01:48][%mdl 8192]} (41... Qc2 $11) 42. Kh2 {[%emt 0:00:00] White wants to mate with Ne5.} Qf1 {[%emt 0:00:28]} 43. Ne5 {[%emt 0:00:35]} g5 {[%emt 0:00:33] [#]} 44. Qg4+ $3 {[%emt 0:00:31][%mdl 33280] Weighted Error Value: White=0.41/Black=0.64.  Mistake:       	White=3     	Black=6      Inaccurate:     	White=1     	Black=6      OK:         	White=12    	Black=7      Best:        	White=6     	Black=3      Strong:       	White=1     	---       . Loss on time!?} 1-0